Workbook

Sheet P-State
A1: 7945HX | I1: 7945HX
B2: STOP | C2: START | D2: VID | E2: f1 | F2: f2 | G2: Case | J2: STOP | K2: START | L2: VID | M2: f1 | N2: f2 | O2: Case
B3: 16 | C3: 8 | D3: =of:=BITAND(BITRSHIFT(HEX2DEC([.$A3]);[.$C3]);POWER(2;[.$B3]-[.$C3])-1) -> 0 | E3: =of:=0.00625*[.$D3] -> 0 | F3: =of:=1.55-[.$E3] -> 1.55 | G3: Idle | J3: 8 | K3: 0 | L3: =of:=BITAND(BITRSHIFT(HEX2DEC([.$I3]);[.$K3]);POWER(2;[.$J3]-[.$K3])-1) -> 0 | M3: =of:=0.00625*[.$L3] -> 0 | N3: =of:=1.55-[.$M3] -> 1.55 | O3: Idle
B4: 16 | C4: 8 | D4: =of:=BITAND(BITRSHIFT(HEX2DEC([.$A4]);[.$C4]);POWER(2;[.$B4]-[.$C4])-1) -> 0 | E4: =of:=0.00625*[.$D4] -> 0 | F4: =of:=1.55-[.$E4] -> 1.55 | G4: Single | J4: 8 | K4: 0 | L4: =of:=BITAND(BITRSHIFT(HEX2DEC([.$I4]);[.$K4]);POWER(2;[.$J4]-[.$K4])-1) -> 0 | M4: =of:=0.00625*[.$L4] -> 0 | N4: =of:=1.55-[.$M4] -> 1.55 | O4: Multi
B5: 16 | C5: 8 | D5: =of:=BITAND(BITRSHIFT(HEX2DEC([.$A5]);[.$C5]);POWER(2;[.$B5]-[.$C5])-1) -> 0 | E5: =of:=0.00625*[.$D5] -> 0 | F5: =of:=1.55-[.$E5] -> 1.55 | G5: All | J5: 8 | K5: 0 | L5: =of:=BITAND(BITRSHIFT(HEX2DEC([.$I5]);[.$K5]);POWER(2;[.$J5]-[.$K5])-1) -> 0 | M5: =of:=0.00625*[.$L5] -> 0 | N5: =of:=1.55-[.$M5] -> 1.55 | O5: Idle
A7: 7950X | I7: 7950X
A8: 0x00073010 | B8: STOP | C8: START | D8: VID | E8: f1 | F8: f2 | G8: Case | I8: 0x00073010 | J8: STOP | K8: START | L8: VID | M8: f1 | N8: f2 | O8: Case
A9: 0000bbc1 | B9: 16 | C9: 8 | D9: =of:=BITAND(BITRSHIFT(HEX2DEC([.$A9]);[.$C9]);POWER(2;[.$B9]-[.$C9])-1) -> 187 | E9: =of:=0.00625*[.$D9] -> 1.16875 | F9: =of:=1.55-[.$E9] -> 0.38125 | G9: Idle | I9: 0000bbc1 | J9: 12 | K9: 4 | L9: =of:=BITAND(BITRSHIFT(HEX2DEC([.$I9]);[.$K9]);POWER(2;[.$J9]-[.$K9])-1) -> 188 | M9: =of:=0.00625*[.$L9] -> 1.175 | N9: =of:=1.55-[.$M9] -> 0.375 | O9: Idle
A10: 0000bb81 | B10: 16 | C10: 8 | D10: =of:=BITAND(BITRSHIFT(HEX2DEC([.$A10]);[.$C10]);POWER(2;[.$B10]-[.$C10])-1) -> 187 | E10: =of:=0.00625*[.$D10] -> 1.16875 | F10: =of:=1.55-[.$E10] -> 0.38125 | G10: Idle | I10: 0000bb81 | J10: 12 | K10: 4 | L10: =of:=BITAND(BITRSHIFT(HEX2DEC([.$I10]);[.$K10]);POWER(2;[.$J10]-[.$K10])-1) -> 184 | M10: =of:=0.00625*[.$L10] -> 1.15 | N10: =of:=1.55-[.$M10] -> 0.4 | O10: Idle
A11: 0000b941 | B11: 16 | C11: 8 | D11: =of:=BITAND(BITRSHIFT(HEX2DEC([.$A11]);[.$C11]);POWER(2;[.$B11]-[.$C11])-1) -> 185 | E11: =of:=0.00625*[.$D11] -> 1.15625 | F11: =of:=1.55-[.$E11] -> 0.39375 | G11: Single | I11: 0000b941 | J11: 12 | K11: 4 | L11: =of:=BITAND(BITRSHIFT(HEX2DEC([.$I11]);[.$K11]);POWER(2;[.$J11]-[.$K11])-1) -> 148 | M11: =of:=0.00625*[.$L11] -> 0.925 | N11: =of:=1.55-[.$M11] -> 0.625 | O11: Single
A12: 0000b9c1 | B12: 16 | C12: 8 | D12: =of:=BITAND(BITRSHIFT(HEX2DEC([.$A12]);[.$C12]);POWER(2;[.$B12]-[.$C12])-1) -> 185 | E12: =of:=0.00625*[.$D12] -> 1.15625 | F12: =of:=1.55-[.$E12] -> 0.39375 | G12: Single | I12: 0000b9c1 | J12: 12 | K12: 4 | L12: =of:=BITAND(BITRSHIFT(HEX2DEC([.$I12]);[.$K12]);POWER(2;[.$J12]-[.$K12])-1) -> 156 | M12: =of:=0.00625*[.$L12] -> 0.975 | N12: =of:=1.55-[.$M12] -> 0.575 | O12: Single
A13: 0000b981 | B13: 16 | C13: 8 | D13: =of:=BITAND(BITRSHIFT(HEX2DEC([.$A13]);[.$C13]);POWER(2;[.$B13]-[.$C13])-1) -> 185 | E13: =of:=0.00625*[.$D13] -> 1.15625 | F13: =of:=1.55-[.$E13] -> 0.39375 | G13: Single | I13: 0000b981 | J13: 12 | K13: 4 | L13: =of:=BITAND(BITRSHIFT(HEX2DEC([.$I13]);[.$K13]);POWER(2;[.$J13]-[.$K13])-1) -> 152 | M13: =of:=0.00625*[.$L13] -> 0.95 | N13: =of:=1.55-[.$M13] -> 0.6 | O13: Single
A14: 0000b1c1 | B14: 16 | C14: 8 | D14: =of:=BITAND(BITRSHIFT(HEX2DEC([.$A14]);[.$C14]);POWER(2;[.$B14]-[.$C14])-1) -> 177 | E14: =of:=0.00625*[.$D14] -> 1.10625 | F14: =of:=1.55-[.$E14] -> 0.44375 | G14: All | I14: 0000b1c1 | J14: 12 | K14: 4 | L14: =of:=BITAND(BITRSHIFT(HEX2DEC([.$I14]);[.$K14]);POWER(2;[.$J14]-[.$K14])-1) -> 28 | M14: =of:=0.00625*[.$L14] -> 0.175 | N14: =of:=1.55-[.$M14] -> 1.375 | O14: All
A15: 0000b241 | B15: 16 | C15: 8 | D15: =of:=BITAND(BITRSHIFT(HEX2DEC([.$A15]);[.$C15]);POWER(2;[.$B15]-[.$C15])-1) -> 178 | E15: =of:=0.00625*[.$D15] -> 1.1125 | F15: =of:=1.55-[.$E15] -> 0.4375 | G15: All | I15: 0000b241 | J15: 12 | K15: 4 | L15: =of:=BITAND(BITRSHIFT(HEX2DEC([.$I15]);[.$K15]);POWER(2;[.$J15]-[.$K15])-1) -> 36 | M15: =of:=0.00625*[.$L15] -> 0.225 | N15: =of:=1.55-[.$M15] -> 1.325 | O15: All
A17: 0x000730d8 | B17: STOP | C17: START | D17: VID | E17: f1 | F17: f2 | G17: Case | I17: 0x000730d8 | J17: STOP | K17: START | L17: VID | M17: f1 | N17: f2 | O17: Case
A18: 3bc10000 | B18: 32 | C18: 24 | D18: =of:=BITAND(BITRSHIFT(HEX2DEC([.$A18]);[.$C18]);POWER(2;[.$B18]-[.$C18])-1) -> 59 | E18: =of:=0.00625*[.$D18] -> 0.36875 | F18: =of:=1.55-[.$E18] -> 1.18125 | G18: Idle | I18: 3bc10000 | J18: 28 | K18: 20 | L18: =of:=BITAND(BITRSHIFT(HEX2DEC([.$I18]);[.$K18]);POWER(2;[.$J18]-[.$K18])-1) -> 188 | M18: =of:=0.00625*[.$L18] -> 1.175 | N18: =of:=1.55-[.$M18] -> 0.375 | O18: Idle
A19: 3b810000 | B19: 32 | C19: 24 | D19: =of:=BITAND(BITRSHIFT(HEX2DEC([.$A19]);[.$C19]);POWER(2;[.$B19]-[.$C19])-1) -> 59 | E19: =of:=0.00625*[.$D19] -> 0.36875 | F19: =of:=1.55-[.$E19] -> 1.18125 | G19: Idle | I19: 3b810000 | J19: 28 | K19: 20 | L19: =of:=BITAND(BITRSHIFT(HEX2DEC([.$I19]);[.$K19]);POWER(2;[.$J19]-[.$K19])-1) -> 184 | M19: =of:=0.00625*[.$L19] -> 1.15 | N19: =of:=1.55-[.$M19] -> 0.4 | O19: Idle
A20: 39410000 | B20: 32 | C20: 24 | D20: =of:=BITAND(BITRSHIFT(HEX2DEC([.$A20]);[.$C20]);POWER(2;[.$B20]-[.$C20])-1) -> 57 | E20: =of:=0.00625*[.$D20] -> 0.35625 | F20: =of:=1.55-[.$E20] -> 1.19375 | G20: Single | I20: 39410000 | J20: 28 | K20: 20 | L20: =of:=BITAND(BITRSHIFT(HEX2DEC([.$I20]);[.$K20]);POWER(2;[.$J20]-[.$K20])-1) -> 148 | M20: =of:=0.00625*[.$L20] -> 0.925 | N20: =of:=1.55-[.$M20] -> 0.625 | O20: Single
A21: 39810000 | B21: 32 | C21: 24 | D21: =of:=BITAND(BITRSHIFT(HEX2DEC([.$A21]);[.$C21]);POWER(2;[.$B21]-[.$C21])-1) -> 57 | E21: =of:=0.00625*[.$D21] -> 0.35625 | F21: =of:=1.55-[.$E21] -> 1.19375 | G21: Single | I21: 39810000 | J21: 28 | K21: 20 | L21: =of:=BITAND(BITRSHIFT(HEX2DEC([.$I21]);[.$K21]);POWER(2;[.$J21]-[.$K21])-1) -> 152 | M21: =of:=0.00625*[.$L21] -> 0.95 | N21: =of:=1.55-[.$M21] -> 0.6 | O21: Single
A22: 31c10000 | B22: 32 | C22: 24 | D22: =of:=BITAND(BITRSHIFT(HEX2DEC([.$A22]);[.$C22]);POWER(2;[.$B22]-[.$C22])-1) -> 49 | E22: =of:=0.00625*[.$D22] -> 0.30625 | F22: =of:=1.55-[.$E22] -> 1.24375 | G22: All | I22: 31c10000 | J22: 28 | K22: 20 | L22: =of:=BITAND(BITRSHIFT(HEX2DEC([.$I22]);[.$K22]);POWER(2;[.$J22]-[.$K22])-1) -> 28 | M22: =of:=0.00625*[.$L22] -> 0.175 | N22: =of:=1.55-[.$M22] -> 1.375 | O22: All
A23: 32410000 | B23: 32 | C23: 24 | D23: =of:=BITAND(BITRSHIFT(HEX2DEC([.$A23]);[.$C23]);POWER(2;[.$B23]-[.$C23])-1) -> 50 | E23: =of:=0.00625*[.$D23] -> 0.3125 | F23: =of:=1.55-[.$E23] -> 1.2375 | G23: All | I23: 32410000 | J23: 28 | K23: 20 | L23: =of:=BITAND(BITRSHIFT(HEX2DEC([.$I23]);[.$K23]);POWER(2;[.$J23]-[.$K23])-1) -> 36 | M23: =of:=0.00625*[.$L23] -> 0.225 | N23: =of:=1.55-[.$M23] -> 1.325 | O23: All
